[Event "Titled Tuesday Blitz March 07 Late 2023"]
[White "Deac, Bogdan-Daniel"]
[Black "Hambleton, Aman"]
[WhiteFideId "1226380"]
[BlackFideId "2606577"]
[WhiteElo "2649"]
[BlackElo "2511"]
[Result "0-1"]
[Round "08"]
[TimeControl "180+2"]
[Date "2023.03.07"]
[WhiteClock "0:00:03"]
[BlackClock "0:00:04"]

1. d4 {[%clk 0:03:00]}  Nf6 {[%clk 0:02:58]} 2. Bf4 {[%clk 0:03:00]}  e6 {[%clk 0:02:45]} 3. e3 {[%clk 0:02:59]}  Bd6 {[%clk 0:02:41]} 4. Bg5 {[%clk 0:02:56]}  Be7 {[%clk 0:02:38]} 5. c4 {[%clk 0:02:56]}  Ne4 {[%clk 0:02:34]} 6. Bxe7 {[%clk 0:02:56]}  Qxe7 {[%clk 0:02:34]} 7. a3 {[%clk 0:02:56]}  b6 {[%clk 0:02:28]} 8. Bd3 {[%clk 0:02:50]}  Bb7 {[%clk 0:02:28]} 9. Ne2 {[%clk 0:02:51]}  d6 {[%clk 0:02:06]} 10. O-O {[%clk 0:02:47]}  Nd7 {[%clk 0:02:03]} 11. f3 {[%clk 0:02:47]}  Nef6 {[%clk 0:02:03]} 12. Nbc3 {[%clk 0:02:47]}  O-O {[%clk 0:02:01]} 13. Qe1 {[%clk 0:02:47]}  c5 {[%clk 0:02:00]} 14. Qh4 {[%clk 0:02:44]}  Rfe8 {[%clk 0:01:49]} 15. Rae1 {[%clk 0:02:40]}  Nf8 {[%clk 0:01:38]} 16. f4 {[%clk 0:02:27]}  cxd4 {[%clk 0:01:21]} 17. Nxd4 {[%clk 0:02:26]}  Nd5 {[%clk 0:01:10]} 18. Qh3 {[%clk 0:01:36]}  Nxc3 {[%clk 0:01:07]} 19. bxc3 {[%clk 0:01:37]}  g6 {[%clk 0:00:54]} 20. e4 {[%clk 0:01:35]}  e5 {[%clk 0:00:45]} 21. Ne2 {[%clk 0:01:13]}  exf4 {[%clk 0:00:17]} 22. Nxf4 {[%clk 0:01:14]}  Nd7 {[%clk 0:00:17]} 23. Qg3 {[%clk 0:01:07]}  Kh8 {[%clk 0:00:12]} 24. Bc2 {[%clk 0:01:04]}  Ne5 {[%clk 0:00:11]} 25. Bb3 {[%clk 0:00:50]}  Rac8 {[%clk 0:00:11]} 26. Qe3 {[%clk 0:00:41]}  Kg8 {[%clk 0:00:09]} 27. Qd4 {[%clk 0:00:40]}  Qc7 {[%clk 0:00:06]} 28. Kh1 {[%clk 0:00:40]}  Qc5 {[%clk 0:00:05]} 29. Qd1 {[%clk 0:00:37]}  Rc7 {[%clk 0:00:03]} 30. a4 {[%clk 0:00:34]}  a5 {[%clk 0:00:02]} 31. h3 {[%clk 0:00:26]}  Rce7 {[%clk 0:00:02]} 32. Nd5 {[%clk 0:00:23]}  Bxd5 {[%clk 0:00:03]} 33. cxd5 {[%clk 0:00:24]}  Qxc3 {[%clk 0:00:01]} 34. Re2 {[%clk 0:00:23]}  Qb4 {[%clk 0:00:01]} 35. Bc2 {[%clk 0:00:21]}  Rc7 {[%clk 0:00:01]} 36. Re3 {[%clk 0:00:21]}  Rc3 {[%clk 0:00:01]} 37. Re2 {[%clk 0:00:18]}  Rec8 {[%clk 0:00:01]} 38. Rff2 {[%clk 0:00:17]}  Qc5 {[%clk 0:00:01]} 39. Kh2 {[%clk 0:00:17]}  Nc4 {[%clk 0:00:02]} 40. Qe1 {[%clk 0:00:13]}  Ne5 {[%clk 0:00:02]} 41. Qb1 {[%clk 0:00:09]}  Qb4 {[%clk 0:00:02]} 42. Qd1 {[%clk 0:00:09]}  Qc4 {[%clk 0:00:02]} 43. Qd2 {[%clk 0:00:08]}  Qc5 {[%clk 0:00:02]} 44. Bb1 {[%clk 0:00:08]}  b5 {[%clk 0:00:02]} 45. axb5 {[%clk 0:00:08]}  Qxb5 {[%clk 0:00:03]} 46. Bc2 {[%clk 0:00:09]}  Qb2 {[%clk 0:00:03]} 47. Qd1 {[%clk 0:00:06]}  Qb4 {[%clk 0:00:03]} 48. Qa1 {[%clk 0:00:05]}  Ra3 {[%clk 0:00:03]} 49. Qf1 {[%clk 0:00:04]}  Rac3 {[%clk 0:00:02]} 50. Rd2 {[%clk 0:00:05]}  a4 {[%clk 0:00:02]} 51. Qa6 {[%clk 0:00:05]}  a3 {[%clk 0:00:02]} 52. Bd1 {[%clk 0:00:05]}  Rc1 {[%clk 0:00:02]} 53. Bg4 {[%clk 0:00:05]}  R8c7 {[%clk 0:00:01]} 54. Qa8+ {[%clk 0:00:04]}  Kg7 {[%clk 0:00:02]} 55. Qd8 {[%clk 0:00:05]}  f5 {[%clk 0:00:02]} 56. exf5 {[%clk 0:00:05]}  Nxg4+ {[%clk 0:00:02]} 57. hxg4 {[%clk 0:00:05]}  Qxg4 {[%clk 0:00:03]} 58. f6+ {[%clk 0:00:04]}  Kh6 {[%clk 0:00:04]} 59. Rd3 {[%clk 0:00:04]}  R7c3 {[%clk 0:00:03]} 60. Qf8+ {[%clk 0:00:03]}  Kg5 {[%clk 0:00:03]} 61. Rxc3 {[%clk 0:00:03]}  Rxc3 {[%clk 0:00:04]} 62. Rf3 {[%clk 0:00:03]}  Qh4+ {[%clk 0:00:04]} 63. Rh3 {[%clk 0:00:03]}  Qf4+ {[%clk 0:00:04]} 0-1


[Site "https://www.chess.com"]

[Event "Titled Tuesday Blitz March 07 Late 2023"]
[White "Lenderman, Aleksandr"]
[Black "Adewumi, Tanitoluwa"]
[WhiteFideId "2021285"]
[BlackFideId "30966396"]
[WhiteElo "2607"]
[BlackElo "2746"]
[Result "1-0"]
[Round "08"]
[TimeControl "180+2"]
[Date "2023.03.07"]
[WhiteClock "0:01:04"]
[BlackClock "0:00:16"]

1. Nf3 {[%clk 0:03:00]}  d5 {[%clk 0:02:57]} 2. e3 {[%clk 0:03:00]}  Nf6 {[%clk 0:02:56]} 3. c4 {[%clk 0:03:00]}  c6 {[%clk 0:02:54]} 4. Nc3 {[%clk 0:02:59]}  g6 {[%clk 0:02:51]} 5. d4 {[%clk 0:02:58]}  Bg7 {[%clk 0:02:51]} 6. Bd3 {[%clk 0:02:57]}  O-O {[%clk 0:02:51]} 7. O-O {[%clk 0:02:58]}  Bf5 {[%clk 0:02:51]} 8. Bxf5 {[%clk 0:02:57]}  gxf5 {[%clk 0:02:52]} 9. cxd5 {[%clk 0:02:58]}  Nxd5 {[%clk 0:02:49]} 10. Qb3 {[%clk 0:02:58]}  Nxc3 {[%clk 0:02:41]} 11. bxc3 {[%clk 0:02:59]}  Qb6 {[%clk 0:02:31]} 12. Ba3 {[%clk 0:02:58]}  Re8 {[%clk 0:02:25]} 13. Rfb1 {[%clk 0:02:55]}  Nd7 {[%clk 0:02:22]} 14. Qc2 {[%clk 0:02:53]}  Qa6 {[%clk 0:02:16]} 15. Bc1 {[%clk 0:02:48]}  e6 {[%clk 0:02:13]} 16. Bd2 {[%clk 0:02:48]}  Nb6 {[%clk 0:01:52]} 17. e4 {[%clk 0:02:48]}  fxe4 {[%clk 0:01:46]} 18. Qxe4 {[%clk 0:02:49]}  Qa5 {[%clk 0:01:35]} 19. c4 {[%clk 0:02:43]}  Qf5 {[%clk 0:01:34]} 20. Qxf5 {[%clk 0:02:41]}  exf5 {[%clk 0:01:35]} 21. c5 {[%clk 0:02:40]}  Nc4 {[%clk 0:01:35]} 22. Bc3 {[%clk 0:02:33]}  b5 {[%clk 0:01:34]} 23. cxb6 {[%clk 0:02:31]}  axb6 {[%clk 0:01:35]} 24. a4 {[%clk 0:02:30]}  b5 {[%clk 0:01:18]} 25. axb5 {[%clk 0:02:27]}  Rxa1 {[%clk 0:01:15]} 26. Bxa1 {[%clk 0:02:24]}  Na3 {[%clk 0:01:10]} 27. Rb3 {[%clk 0:02:23]}  Nxb5 {[%clk 0:00:48]} 28. Kf1 {[%clk 0:02:20]}  Ra8 {[%clk 0:00:43]} 29. Bb2 {[%clk 0:02:19]}  Ra2 {[%clk 0:00:43]} 30. Ne5 {[%clk 0:02:16]}  Bxe5 {[%clk 0:00:29]} 31. dxe5 {[%clk 0:02:17]}  Kf8 {[%clk 0:00:27]} 32. e6 {[%clk 0:01:53]}  fxe6 {[%clk 0:00:25]} 33. Be5 {[%clk 0:01:54]}  Ra4 {[%clk 0:00:17]} 34. Rh3 {[%clk 0:01:52]}  Kg8 {[%clk 0:00:17]} 35. Rg3+ {[%clk 0:01:52]}  Rg4 {[%clk 0:00:17]} 36. Rd3 {[%clk 0:01:50]}  Re4 {[%clk 0:00:15]} 37. f4 {[%clk 0:01:50]}  c5 {[%clk 0:00:14]} 38. Rd8+ {[%clk 0:01:46]}  Kf7 {[%clk 0:00:14]} 39. Rd7+ {[%clk 0:01:47]}  Kg6 {[%clk 0:00:14]} 40. Rg7+ {[%clk 0:01:47]}  Kh6 {[%clk 0:00:14]} 41. Re7 {[%clk 0:01:47]}  Nd4 {[%clk 0:00:12]} 42. Rc7 {[%clk 0:01:46]}  Nb3 {[%clk 0:00:05]} 43. Rc6 {[%clk 0:01:45]}  Nd4 {[%clk 0:00:04]} 44. Rxc5 {[%clk 0:01:45]}  Ne2 {[%clk 0:00:04]} 45. g3 {[%clk 0:01:41]}  Nd4 {[%clk 0:00:04]} 46. Rc3 {[%clk 0:01:32]}  Kg6 {[%clk 0:00:03]} 47. h3 {[%clk 0:01:21]}  h5 {[%clk 0:00:03]} 48. h4 {[%clk 0:01:16]}  Kh6 {[%clk 0:00:02]} 49. Rd3 {[%clk 0:01:12]}  Nc6 {[%clk 0:00:02]} 50. Bf6 {[%clk 0:01:13]}  Kg6 {[%clk 0:00:01]} 51. Bc3 {[%clk 0:01:12]}  e5 {[%clk 0:00:02]} 52. Rd6+ {[%clk 0:01:12]}  Kf7 {[%clk 0:00:01]} 53. Rxc6 {[%clk 0:01:12]}  exf4 {[%clk 0:00:02]} 54. Rf6+ {[%clk 0:01:07]}  Ke7 {[%clk 0:00:02]} 55. Rxf5 {[%clk 0:01:07]}  Re3 {[%clk 0:00:02]} 56. Re5+ {[%clk 0:00:58]}  Rxe5 {[%clk 0:00:03]} 57. Bxe5 {[%clk 0:00:59]}  fxg3 {[%clk 0:00:03]} 58. Bxg3 {[%clk 0:00:59]}  Ke6 {[%clk 0:00:03]} 59. Kg2 {[%clk 0:01:00]}  Kf5 {[%clk 0:00:04]} 60. Kf3 {[%clk 0:01:00]}  Kg6 {[%clk 0:00:04]} 61. Kf4 {[%clk 0:01:01]}  Kh6 {[%clk 0:00:05]} 62. Kf5 {[%clk 0:01:02]}  Kh7 {[%clk 0:00:06]} 63. Kg5 {[%clk 0:01:02]}  Kg7 {[%clk 0:00:07]} 64. Kxh5 {[%clk 0:01:02]}  Kg8 {[%clk 0:00:08]} 65. Kg6 {[%clk 0:01:03]}  Kh8 {[%clk 0:00:09]} 66. h5 {[%clk 0:01:03]}  Kg8 {[%clk 0:00:10]} 67. h6 {[%clk 0:01:04]}  Kh8 {[%clk 0:00:11]} 68. Be5+ {[%clk 0:01:04]}  Kg8 {[%clk 0:00:11]} 69. h7+ {[%clk 0:01:04]}  Kf8 {[%clk 0:00:12]} 70. h8=Q+ {[%clk 0:01:04]}  Ke7 {[%clk 0:00:13]} 71. Qf6+ {[%clk 0:01:05]}  Kd7 {[%clk 0:00:14]} 72. Qd6+ {[%clk 0:01:05]}  Ke8 {[%clk 0:00:15]} 73. Qc6+ {[%clk 0:01:04]}  Kf8 {[%clk 0:00:16]} 74. Bd6+ {[%clk 0:01:03]}  Kg8 {[%clk 0:00:16]} 75. Qc8# {[%clk 0:01:04]} 1-0


[Site "https://www.chess.com"]

[Event "Titled Tuesday Blitz March 07 Late 2023"]
[White "Yoo, Christopher Woojin"]
[Black "Iliaguev, Nisim"]
[WhiteFideId "30909694"]
[BlackFideId "2817276"]
[WhiteElo "2519"]
[BlackElo "2241"]
[Result "1/2-1/2"]
[Round "08"]
[TimeControl "180+2"]
[Date "2023.03.07"]
[WhiteClock "0:00:09"]
[BlackClock "0:00:21"]

1. e4 {[%clk 0:03:00]}  c6 {[%clk 0:02:59]} 2. Nf3 {[%clk 0:03:00]}  d5 {[%clk 0:02:59]} 3. exd5 {[%clk 0:03:00]}  cxd5 {[%clk 0:02:59]} 4. Ne5 {[%clk 0:02:59]}  Nc6 {[%clk 0:02:57]} 5. Bb5 {[%clk 0:02:59]}  Qc7 {[%clk 0:02:53]} 6. d4 {[%clk 0:02:58]}  e6 {[%clk 0:02:47]} 7. O-O {[%clk 0:02:58]}  Bd6 {[%clk 0:02:46]} 8. c4 {[%clk 0:02:43]}  Ne7 {[%clk 0:02:41]} 9. Nc3 {[%clk 0:02:36]}  O-O {[%clk 0:02:39]} 10. Bxc6 {[%clk 0:02:23]}  bxc6 {[%clk 0:02:39]} 11. Re1 {[%clk 0:02:23]}  dxc4 {[%clk 0:02:31]} 12. Ne4 {[%clk 0:02:16]}  Bxe5 {[%clk 0:02:29]} 13. dxe5 {[%clk 0:02:17]}  Qxe5 {[%clk 0:02:28]} 14. Bg5 {[%clk 0:02:14]}  Qc7 {[%clk 0:02:16]} 15. Qc1 {[%clk 0:01:28]}  Nd5 {[%clk 0:01:46]} 16. Qxc4 {[%clk 0:01:27]}  a5 {[%clk 0:01:45]} 17. Rac1 {[%clk 0:01:21]}  Ba6 {[%clk 0:01:44]} 18. Qxc6 {[%clk 0:00:56]}  Qxc6 {[%clk 0:01:45]} 19. Rxc6 {[%clk 0:00:56]}  h6 {[%clk 0:01:45]} 20. Bd2 {[%clk 0:00:52]}  a4 {[%clk 0:01:37]} 21. Bc3 {[%clk 0:00:40]}  Bd3 {[%clk 0:01:34]} 22. f3 {[%clk 0:00:25]}  a3 {[%clk 0:01:32]} 23. Nf2 {[%clk 0:00:18]}  Bg6 {[%clk 0:01:25]} 24. b3 {[%clk 0:00:14]}  Rfc8 {[%clk 0:01:25]} 25. Rxc8+ {[%clk 0:00:14]}  Rxc8 {[%clk 0:01:26]} 26. Ba5 {[%clk 0:00:13]}  Rc2 {[%clk 0:01:21]} 27. Ra1 {[%clk 0:00:13]}  Rb2 {[%clk 0:01:21]} 28. Nd1 {[%clk 0:00:13]}  Nf4 {[%clk 0:00:53]} 29. Ne3 {[%clk 0:00:13]}  Ne2+ {[%clk 0:00:47]} 30. Kh1 {[%clk 0:00:09]}  Nd4 {[%clk 0:00:30]} 31. Nc4 {[%clk 0:00:07]}  Nc2 {[%clk 0:00:19]} 32. Nxb2 {[%clk 0:00:06]}  Nxa1 {[%clk 0:00:20]} 33. Nc4 {[%clk 0:00:06]}  Nc2 {[%clk 0:00:20]} 34. Bb6 {[%clk 0:00:04]}  Bd3 {[%clk 0:00:18]} 35. Ne5 {[%clk 0:00:04]}  Bb5 {[%clk 0:00:17]} 36. Bc5 {[%clk 0:00:04]}  f6 {[%clk 0:00:16]} 37. Ng4 {[%clk 0:00:02]}  e5 {[%clk 0:00:17]} 38. Ne3 {[%clk 0:00:02]}  Nxe3 {[%clk 0:00:15]} 39. Bxe3 {[%clk 0:00:03]}  Bd3 {[%clk 0:00:15]} 40. Bc5 {[%clk 0:00:03]}  Bb1 {[%clk 0:00:16]} 41. Bxa3 {[%clk 0:00:03]}  Bxa2 {[%clk 0:00:16]} 42. b4 {[%clk 0:00:04]}  Bc4 {[%clk 0:00:17]} 43. Kg1 {[%clk 0:00:04]}  Kf7 {[%clk 0:00:18]} 44. Kf2 {[%clk 0:00:05]}  Ke6 {[%clk 0:00:19]} 45. Ke3 {[%clk 0:00:05]}  Kd5 {[%clk 0:00:19]} 46. g4 {[%clk 0:00:04]}  g6 {[%clk 0:00:19]} 47. h4 {[%clk 0:00:03]}  f5 {[%clk 0:00:19]} 48. gxf5 {[%clk 0:00:04]}  gxf5 {[%clk 0:00:20]} 49. h5 {[%clk 0:00:04]}  Bb5 {[%clk 0:00:19]} 50. f4 {[%clk 0:00:03]}  e4 {[%clk 0:00:17]} 51. Bb2 {[%clk 0:00:03]}  Be8 {[%clk 0:00:17]} 52. Bg7 {[%clk 0:00:02]}  Bxh5 {[%clk 0:00:17]} 53. Bxh6 {[%clk 0:00:03]}  Be8 {[%clk 0:00:18]} 54. Bf8 {[%clk 0:00:03]}  Bb5 {[%clk 0:00:18]} 55. Bc5 {[%clk 0:00:04]}  Bc4 {[%clk 0:00:19]} 56. Bd4 {[%clk 0:00:05]}  Bb5 {[%clk 0:00:19]} 57. Bg7 {[%clk 0:00:05]}  Kc4 {[%clk 0:00:19]} 58. Bf8 {[%clk 0:00:06]}  Bc6 {[%clk 0:00:19]} 59. Bc5 {[%clk 0:00:06]}  Bd5 {[%clk 0:00:19]} 60. Be7 {[%clk 0:00:07]}  Kb5 {[%clk 0:00:20]} 61. Bd6 {[%clk 0:00:07]}  Kc6 {[%clk 0:00:21]} 62. Bf8 {[%clk 0:00:07]}  Kd7 {[%clk 0:00:21]} 63. Kd4 {[%clk 0:00:08]}  Bb3 {[%clk 0:00:18]} 64. b5 {[%clk 0:00:07]}  Kc8 {[%clk 0:00:18]} 65. Ke5 {[%clk 0:00:06]}  e3 {[%clk 0:00:17]} 66. Kxf5 {[%clk 0:00:06]}  e2 {[%clk 0:00:17]} 67. Bb4 {[%clk 0:00:06]}  Kb7 {[%clk 0:00:16]} 68. Ke5 {[%clk 0:00:05]}  Kb6 {[%clk 0:00:17]} 69. f5 {[%clk 0:00:05]}  Kxb5 {[%clk 0:00:17]} 70. Be1 {[%clk 0:00:06]}  Kc4 {[%clk 0:00:17]} 71. Ke4 {[%clk 0:00:04]}  Bc2+ {[%clk 0:00:18]} 72. Ke5 {[%clk 0:00:05]}  Bxf5 {[%clk 0:00:19]} 73. Kxf5 {[%clk 0:00:05]}  Kd3 {[%clk 0:00:19]} 74. Kf4 {[%clk 0:00:06]}  Kc2 {[%clk 0:00:20]} 75. Ke3 {[%clk 0:00:07]}  Kd1 {[%clk 0:00:21]} 76. Kf2 {[%clk 0:00:08]}  Kc2 {[%clk 0:00:21]} 77. Kxe2 {[%clk 0:00:09]} 1/2-1/2


[Site "https://www.chess.com"]

[Event "Titled Tuesday Blitz March 07 Late 2023"]
[White "Aldokhin, Ivan"]
[Black "Licznerski, Lukasz"]
[WhiteFideId "24115720"]
[BlackFideId "1179250"]
[WhiteElo "2322"]
[BlackElo "2450"]
[Result "0-1"]
[Round "08"]
[TimeControl "180+2"]
[Date "2023.03.07"]
[WhiteClock "0:00:05"]
[BlackClock "0:02:02"]

1. e4 {[%clk 0:03:00]}  c6 {[%clk 0:02:58]} 2. Nc3 {[%clk 0:03:00]}  d5 {[%clk 0:02:58]} 3. d4 {[%clk 0:03:00]}  dxe4 {[%clk 0:02:58]} 4. Nxe4 {[%clk 0:03:01]}  Nd7 {[%clk 0:02:58]} 5. Nf3 {[%clk 0:02:55]}  Ngf6 {[%clk 0:02:58]} 6. Nxf6+ {[%clk 0:02:54]}  Nxf6 {[%clk 0:02:59]} 7. g3 {[%clk 0:02:55]}  Bg4 {[%clk 0:02:57]} 8. Bg2 {[%clk 0:02:55]}  e6 {[%clk 0:02:57]} 9. O-O {[%clk 0:02:51]}  Be7 {[%clk 0:02:58]} 10. Qd3 {[%clk 0:02:45]}  O-O {[%clk 0:02:57]} 11. Ne5 {[%clk 0:02:25]}  Bf5 {[%clk 0:02:57]} 12. Qd1 {[%clk 0:02:22]}  Qb6 {[%clk 0:02:54]} 13. c3 {[%clk 0:02:10]}  Rfd8 {[%clk 0:02:52]} 14. Qe2 {[%clk 0:01:46]}  Nd7 {[%clk 0:02:48]} 15. g4 {[%clk 0:01:30]}  Bg6 {[%clk 0:02:43]} 16. Nxg6 {[%clk 0:01:06]}  hxg6 {[%clk 0:02:43]} 17. Be3 {[%clk 0:00:59]}  Qc7 {[%clk 0:02:39]} 18. f4 {[%clk 0:00:54]}  Bd6 {[%clk 0:02:28]} 19. h3 {[%clk 0:00:47]}  Re8 {[%clk 0:02:25]} 20. Qf3 {[%clk 0:00:34]}  Nf6 {[%clk 0:02:21]} 21. b4 {[%clk 0:00:25]}  a5 {[%clk 0:02:16]} 22. a3 {[%clk 0:00:25]}  Nd5 {[%clk 0:02:11]} 23. Bd2 {[%clk 0:00:25]}  axb4 {[%clk 0:02:11]} 24. axb4 {[%clk 0:00:25]}  Rxa1 {[%clk 0:02:11]} 25. Rxa1 {[%clk 0:00:26]}  Bxf4 {[%clk 0:02:10]} 26. Bxf4 {[%clk 0:00:12]}  Nxf4 {[%clk 0:02:09]} 27. Rf1 {[%clk 0:00:10]}  g5 {[%clk 0:02:08]} 28. h4 {[%clk 0:00:07]}  Nxg2 {[%clk 0:02:07]} 29. Kxg2 {[%clk 0:00:05]}  gxh4 {[%clk 0:02:08]} 30. Kh3 {[%clk 0:00:05]}  e5 {[%clk 0:02:03]} 31. dxe5 {[%clk 0:00:05]}  Rxe5 {[%clk 0:02:02]} 32. Kxh4 {[%clk 0:00:05]}  Qe7+ {[%clk 0:02:02]} 0-1


[Site "https://www.chess.com"]

[Event "Titled Tuesday Blitz March 07 Late 2023"]
[White "Ibarra Jerez, Jose Carlos"]
[Black "Preotu, Razvan"]
[WhiteFideId "2226332"]
[BlackFideId "2613280"]
[WhiteElo "2638"]
[BlackElo "2407"]
[Result "0-1"]
[Round "08"]
[TimeControl "180+2"]
[Date "2023.03.07"]
[WhiteClock "0:00:03"]
[BlackClock "0:00:03"]

1. e4 {[%clk 0:03:00]}  c5 {[%clk 0:02:59]} 2. Nc3 {[%clk 0:03:00]}  d6 {[%clk 0:02:59]} 3. d4 {[%clk 0:03:00]}  cxd4 {[%clk 0:03:00]} 4. Qxd4 {[%clk 0:03:00]}  Nc6 {[%clk 0:03:01]} 5. Qd2 {[%clk 0:03:01]}  g6 {[%clk 0:03:00]} 6. b3 {[%clk 0:03:01]}  Bh6 {[%clk 0:03:01]} 7. f4 {[%clk 0:03:02]}  Nf6 {[%clk 0:03:01]} 8. Bb2 {[%clk 0:03:03]}  O-O {[%clk 0:03:02]} 9. O-O-O {[%clk 0:03:03]}  e5 {[%clk 0:03:02]} 10. g3 {[%clk 0:03:04]}  Re8 {[%clk 0:03:03]} 11. Nge2 {[%clk 0:03:01]}  Bg4 {[%clk 0:02:54]} 12. Bg2 {[%clk 0:03:01]}  Nd4 {[%clk 0:01:44]} 13. Nxd4 {[%clk 0:02:59]}  exd4 {[%clk 0:01:41]} 14. Qxd4 {[%clk 0:02:57]}  Bxd1 {[%clk 0:01:33]} 15. Nd5 {[%clk 0:02:53]}  Bg7 {[%clk 0:01:32]} 16. Nxf6+ {[%clk 0:01:50]}  Bxf6 {[%clk 0:01:32]} 17. Qxf6 {[%clk 0:01:50]}  Qxf6 {[%clk 0:01:33]} 18. Bxf6 {[%clk 0:01:51]}  Bg4 {[%clk 0:01:33]} 19. f5 {[%clk 0:01:32]}  gxf5 {[%clk 0:01:32]} 20. h3 {[%clk 0:01:31]}  Be2 {[%clk 0:01:32]} 21. exf5 {[%clk 0:01:28]}  Ba6 {[%clk 0:01:05]} 22. Rd1 {[%clk 0:00:30]}  Re2 {[%clk 0:00:35]} 23. Rd2 {[%clk 0:00:28]}  Rae8 {[%clk 0:00:30]} 24. Bf3 {[%clk 0:00:28]}  R2e3 {[%clk 0:00:24]} 25. Rf2 {[%clk 0:00:25]}  b6 {[%clk 0:00:20]} 26. Kd2 {[%clk 0:00:24]}  Re1 {[%clk 0:00:15]} 27. Bc6 {[%clk 0:00:21]}  R8e2+ {[%clk 0:00:14]} 28. Rxe2 {[%clk 0:00:20]}  Rxe2+ {[%clk 0:00:15]} 29. Kd1 {[%clk 0:00:17]}  Re3 {[%clk 0:00:15]} 30. Bh4 {[%clk 0:00:17]}  Bf1 {[%clk 0:00:11]} 31. Kd2 {[%clk 0:00:12]}  Re2+ {[%clk 0:00:09]} 32. Kc3 {[%clk 0:00:08]}  Bxh3 {[%clk 0:00:08]} 33. f6 {[%clk 0:00:02]}  Bf5 {[%clk 0:00:08]} 34. Kd4 {[%clk 0:00:03]}  Rxc2 {[%clk 0:00:08]} 35. Bd5 {[%clk 0:00:02]}  Rxa2 {[%clk 0:00:08]} 36. Bg5 {[%clk 0:00:03]}  a5 {[%clk 0:00:06]} 37. Bf4 {[%clk 0:00:03]}  b5 {[%clk 0:00:05]} 38. Bxd6 {[%clk 0:00:03]}  Rd2+ {[%clk 0:00:05]} 39. Ke5 {[%clk 0:00:03]}  Bg6 {[%clk 0:00:02]} 40. Bc5 {[%clk 0:00:04]}  a4 {[%clk 0:00:02]} 41. bxa4 {[%clk 0:00:04]}  bxa4 {[%clk 0:00:03]} 42. Kd6 {[%clk 0:00:04]}  Be4 {[%clk 0:00:03]} 43. Bb4 {[%clk 0:00:03]}  Rxd5+ {[%clk 0:00:03]} 44. Ke7 {[%clk 0:00:04]}  Rb5 {[%clk 0:00:03]} 45. Bd6 {[%clk 0:00:04]}  Rb3 {[%clk 0:00:04]} 46. g4 {[%clk 0:00:04]}  a3 {[%clk 0:00:04]} 47. Be5 {[%clk 0:00:04]}  a2 {[%clk 0:00:05]} 48. g5 {[%clk 0:00:05]}  Rb1 {[%clk 0:00:04]} 49. g6 {[%clk 0:00:05]}  hxg6 {[%clk 0:00:04]} 50. Ke8 {[%clk 0:00:04]}  a1=Q {[%clk 0:00:05]} 51. Bd6 {[%clk 0:00:03]}  Qxf6 {[%clk 0:00:02]} 52. Bc7 {[%clk 0:00:03]}  Qe6+ {[%clk 0:00:03]} 53. Kd8 {[%clk 0:00:03]}  Bc6 {[%clk 0:00:03]} 0-1


[Site "https://www.chess.com"]

[Event "Titled Tuesday Blitz March 07 Late 2023"]
[White "Holt, Conrad"]
[Black "Martinez Ramirez, Lennis"]
[WhiteFideId "2034387"]
[BlackFideId "3509079"]
[WhiteElo "2592"]
[BlackElo "2439"]
[Result "1-0"]
[Round "08"]
[TimeControl "180+2"]
[Date "2023.03.07"]
[WhiteClock "0:01:46"]
[BlackClock "0:00:01"]

1. d4 {[%clk 0:03:00]}  d5 {[%clk 0:02:59]} 2. c4 {[%clk 0:03:01]}  dxc4 {[%clk 0:03:00]} 3. e3 {[%clk 0:03:01]}  Nf6 {[%clk 0:03:00]} 4. Bxc4 {[%clk 0:03:01]}  e6 {[%clk 0:03:01]} 5. Nf3 {[%clk 0:03:02]}  c5 {[%clk 0:03:01]} 6. O-O {[%clk 0:03:02]}  a6 {[%clk 0:03:02]} 7. Bd3 {[%clk 0:03:02]}  Nc6 {[%clk 0:03:02]} 8. Nc3 {[%clk 0:02:59]}  Qc7 {[%clk 0:02:46]} 9. a3 {[%clk 0:02:42]}  b5 {[%clk 0:02:41]} 10. dxc5 {[%clk 0:02:41]}  Bxc5 {[%clk 0:02:42]} 11. b4 {[%clk 0:02:42]}  Bd6 {[%clk 0:02:42]} 12. Bb2 {[%clk 0:02:42]}  Bb7 {[%clk 0:02:41]} 13. Ne4 {[%clk 0:02:37]}  Be7 {[%clk 0:01:56]} 14. Rc1 {[%clk 0:02:31]}  Rd8 {[%clk 0:01:39]} 15. Qc2 {[%clk 0:02:26]}  Qb8 {[%clk 0:01:28]} 16. Rfd1 {[%clk 0:02:21]}  h6 {[%clk 0:01:00]} 17. Nc5 {[%clk 0:02:08]}  Rc8 {[%clk 0:00:02]} 18. Nxb7 {[%clk 0:01:52]}  Qxb7 {[%clk 0:00:03]} 19. Bxf6 {[%clk 0:01:52]}  Bxf6 {[%clk 0:00:04]} 20. Be4 {[%clk 0:01:53]}  O-O {[%clk 0:00:04]} 21. Bxc6 {[%clk 0:01:53]}  Qb8 {[%clk 0:00:02]} 22. Qb1 {[%clk 0:01:50]}  Qb6 {[%clk 0:00:02]} 23. Be4 {[%clk 0:01:50]}  Rcd8 {[%clk 0:00:01]} 24. Rxd8 {[%clk 0:01:49]}  Rxd8 {[%clk 0:00:01]} 25. g4 {[%clk 0:01:49]}  Qa7 {[%clk 0:00:01]} 26. Rd1 {[%clk 0:01:48]}  g6 {[%clk 0:00:01]} 27. Rxd8+ {[%clk 0:01:47]}  Bxd8 {[%clk 0:00:01]} 28. Bxg6 {[%clk 0:01:46]} 1-0


[Site "https://www.chess.com"]

[Event "Titled Tuesday Blitz March 07 Late 2023"]
[White "Bach, Matthias"]
[Black "Rorrer, Grayson"]
[WhiteFideId "4603168"]
[BlackFideId "30944996"]
[WhiteElo "2165"]
[BlackElo "2200"]
[Result "0-1"]
[Round "08"]
[TimeControl "180+2"]
[Date "2023.03.07"]
[WhiteClock "0:00:01"]
[BlackClock "0:00:04"]

1. d4 {[%clk 0:02:59]}  Nf6 {[%clk 0:02:59]} 2. c4 {[%clk 0:02:59]}  g6 {[%clk 0:02:59]} 3. Nc3 {[%clk 0:02:58]}  d5 {[%clk 0:03:00]} 4. cxd5 {[%clk 0:02:59]}  Nxd5 {[%clk 0:03:01]} 5. g3 {[%clk 0:02:58]}  Bg7 {[%clk 0:02:58]} 6. Bg2 {[%clk 0:02:58]}  Nxc3 {[%clk 0:02:58]} 7. bxc3 {[%clk 0:02:58]}  c5 {[%clk 0:02:58]} 8. e3 {[%clk 0:02:58]}  O-O {[%clk 0:02:58]} 9. Ne2 {[%clk 0:02:58]}  Qc7 {[%clk 0:02:58]} 10. O-O {[%clk 0:02:57]}  Rd8 {[%clk 0:02:53]} 11. a4 {[%clk 0:02:55]}  cxd4 {[%clk 0:02:50]} 12. cxd4 {[%clk 0:02:54]}  Nc6 {[%clk 0:02:51]} 13. Ba3 {[%clk 0:02:53]}  Be6 {[%clk 0:02:45]} 14. Rc1 {[%clk 0:02:45]}  Qb6 {[%clk 0:02:23]} 15. Nf4 {[%clk 0:02:34]}  Bb3 {[%clk 0:02:18]} 16. Qe1 {[%clk 0:02:11]}  e5 {[%clk 0:02:10]} 17. dxe5 {[%clk 0:02:10]}  Nxe5 {[%clk 0:02:09]} 18. Rb1 {[%clk 0:01:46]}  Nd3 {[%clk 0:01:14]} 19. Nxd3 {[%clk 0:01:37]}  Rxd3 {[%clk 0:01:15]} 20. a5 {[%clk 0:01:11]}  Qa6 {[%clk 0:00:57]} 21. Be4 {[%clk 0:01:05]}  Bd5 {[%clk 0:00:27]} 22. Bxd3 {[%clk 0:00:48]}  Qxd3 {[%clk 0:00:27]} 23. Rd1 {[%clk 0:00:35]}  Qf5 {[%clk 0:00:23]} 24. Rxd5 {[%clk 0:00:28]}  Qxd5 {[%clk 0:00:23]} 25. Bb4 {[%clk 0:00:20]}  Rc8 {[%clk 0:00:22]} 26. Qd2 {[%clk 0:00:19]}  Qxd2 {[%clk 0:00:20]} 27. Bxd2 {[%clk 0:00:19]}  Rd8 {[%clk 0:00:17]} 28. Bb4 {[%clk 0:00:17]}  Rd3 {[%clk 0:00:18]} 29. Rb1 {[%clk 0:00:16]}  Rd7 {[%clk 0:00:10]} 30. Kf1 {[%clk 0:00:16]}  Be5 {[%clk 0:00:09]} 31. Ke2 {[%clk 0:00:16]}  Kg7 {[%clk 0:00:09]} 32. f4 {[%clk 0:00:16]}  Bf6 {[%clk 0:00:07]} 33. e4 {[%clk 0:00:14]}  Bd8 {[%clk 0:00:07]} 34. e5 {[%clk 0:00:14]}  h5 {[%clk 0:00:06]} 35. Bc3 {[%clk 0:00:13]}  Rc7 {[%clk 0:00:03]} 36. Bd4 {[%clk 0:00:12]}  a6 {[%clk 0:00:01]} 37. Ke3 {[%clk 0:00:10]}  Rd7 {[%clk 0:00:01]} 38. Ke4 {[%clk 0:00:10]}  Bxa5 {[%clk 0:00:01]} 39. Rc1 {[%clk 0:00:07]}  Re7 {[%clk 0:00:01]} 40. Rc8 {[%clk 0:00:06]}  Bb4 {[%clk 0:00:02]} 41. h3 {[%clk 0:00:02]}  Re6 {[%clk 0:00:02]} 42. g4 {[%clk 0:00:02]}  hxg4 {[%clk 0:00:03]} 43. hxg4 {[%clk 0:00:02]}  Rc6 {[%clk 0:00:03]} 44. f5 {[%clk 0:00:01]}  Rxc8 {[%clk 0:00:03]} 45. e6+ {[%clk 0:00:01]}  Kf8 {[%clk 0:00:04]} 0-1


[Site "https://www.chess.com"]